fUST/lending_fUST_20250527
["ID","MTS","AMOUNT","RATE_DAILY","PERIOD"]
[362436646,1748289064727,-500.0,0.00024673,2]
[362436647,1748289064737,-168.5,0.00024673,2]
[362436648,1748289064747,-500.0,0.00024673,2]
[362436649,1748289064757,-500.0,0.00024673,2]
[362436650,1748289064766,-160.52742165,0.00024673,2]
[362436651,1748289064776,-500.0,0.00024673,2]
[362436652,1748289064786,-500.0,0.00024673,2]
[362436653,1748289064797,-500.25772882,0.00024673,2]
[362436654,1748289064806,-500.0,0.00024673,2]
[362436655,1748289064817,-534.44048896,0.00024673,2]
[362436656,1748289064827,-500.0,0.00024673,2]
[362436657,1748289064837,-500.0,0.00024673,2]
[362436658,1748289064847,-501.53825745,0.00024673,2]
[362436659,1748289064857,-500.0,0.00024673,2]
[362436660,1748289064867,-500.0,0.00024673,2]
[362436661,1748289064878,-263.61989077,0.00024673,2]
[362436662,1748289064888,-208.99840942,0.00024673,2]
[362436663,1748289064898,-500.0,0.00024673,2]
[362436664,1748289064907,-500.0,0.00024673,2]
[362436665,1748289064918,-500.0,0.00024673,2]
[362436666,1748289064929,-500.0,0.00024673,2]
[362436667,1748289064940,-500.0,0.00024673,2]
[362436668,1748289064951,-500.0,0.00024673,2]
[362436669,1748289064961,-500.0,0.00024673,2]
[362436670,1748289064970,-505.67096782,0.00024673,2]
[362436671,1748289064980,-505.18187842,0.00024673,2]
[362436672,1748289064989,-500.0,0.00024673,2]
[362436673,1748289064998,-461.32160236,0.00024673,2]
[362436674,1748289065007,-12469.84485507,0.00024674,2]
[362436675,1748289065017,-500.0,0.00024684,3]
[362436676,1748289065026,-573.53374678,0.00024693,11]
[362436677,1748289065035,-12729.69,0.000247,7]
[362436678,1748289065045,-6470.46,0.000247,7]
[362436679,1748289065055,-250.0,0.000247,2]
[362436680,1748289065068,-252.0,0.000247,2]
[362436681,1748289065078,-636.0,0.000247,2]
[362436682,1748289065090,-500.0,0.00024712,3]
[362436683,1748289065100,-250.0,0.00024716,2]
[362436684,1748289065111,-573.53374678,0.00024728,11]
[362436685,1748289065120,-349.60315693,0.00024739,3]
[362436686,1748289065130,-363.9573106,0.0002474,2]
[362436687,1748289065140,-5000.0,0.0002475,2]
[362436688,1748289065151,-5000.0,0.0002475,2]
[362436689,1748289065167,-5000.0,0.0002475,2]
[362436690,1748289065176,-5000.0,0.0002475,2]
[362436691,1748289065188,-42949.63094018,0.0002475,2]
[362436692,1748289065197,-8653.77797581,0.0002475,2]
[362436693,1748289065208,-5000.0,0.0002475,2]
[362436694,1748289065219,-959.5058782,0.00024756,2]
[362436695,1748289065232,-573.53374678,0.00024762,11]
[362436696,1748289065242,-5024.63012889,0.00024763,2]
[362436697,1748289065251,-12862.18377913,0.00024774,2]
[362436698,1748289065262,-12469.84485507,0.00024791,2]
[362436699,1748289065272,-573.53374678,0.00024797,11]
[362436700,1748289065281,-182.64,0.000248,14]
[362436701,1748289065290,-183.0,0.000248,15]
[362436702,1748289065300,-4921.12156978,0.000248,7]
[362436703,1748289065310,-2820.27098478,0.00024819,2]
[362436704,1748289065320,-573.53374678,0.00024831,12]
[362436705,1748289065330,-200.0,0.00024845,120]
[362436706,1748289065340,-153.0,0.00024849,2]
[362436707,1748289065349,-153.0,0.00024849,2]
[362436708,1748289065359,-153.0,0.00024849,2]
[362436709,1748289065368,-153.0,0.00024849,2]
[362436710,1748289065378,-153.0,0.00024849,2]
[362436711,1748289065388,-153.0,0.00024849,2]
[362436712,1748289065398,-153.0,0.00024849,2]
[362436713,1748289065408,-573.53374678,0.00024866,12]
[362436714,1748289065418,-200.0,0.0002487,120]
[362436715,1748289065427,-500.0,0.00024873,2]
[362436716,1748289065437,-500.0,0.00024873,2]
[362436717,1748289065446,-500.0,0.00024873,2]
[362436718,1748289065456,-500.0,0.00024873,2]
[362436719,1748289065466,-500.0,0.00024873,2]
[362436720,1748289065475,-500.0,0.00024873,2]
[362436721,1748289065484,-500.0,0.00024873,2]
[362436722,1748289065493,-302.86647657,0.00024873,2]
[362436723,1748289065503,-500.0,0.00024873,2]
[362436724,1748289065511,-500.0,0.00024873,2]
[362436725,1748289065521,-500.11326433,0.00024873,2]
[362436726,1748289065531,-304.94388257,0.00024873,2]
[362436727,1748289065540,-500.0,0.00024873,2]
[362436728,1748289065549,-501.25269036,0.00024873,2]
[362436729,1748289065559,-500.0,0.00024873,2]
[362436730,1748289065568,-500.0,0.00024873,2]
[362436731,1748289065579,-500.45932467,0.00024873,2]
[362436732,1748289065588,-500.0,0.00024873,2]
[362436733,1748289065597,-500.0,0.00024873,2]
[362436734,1748289065606,-500.0,0.00024873,2]
[362436735,1748289065616,-531.64922956,0.00024873,2]
[362436736,1748289065626,-500.58288033,0.00024873,2]
[362436737,1748289065635,-500.0,0.00024873,2]
[362436738,1748289065644,-500.0,0.00024873,2]
[362436739,1748289065654,-500.13566374,0.00024873,2]
[362436740,1748289065663,-500.0,0.00024873,2]
[362436741,1748289065673,-500.93203214,0.00024873,2]
[362436742,1748289065682,-500.0,0.00024873,2]
[362436743,1748289065691,-500.0,0.00024873,2]
[362436744,1748289065701,-500.41650062,0.00024873,2]
[362436745,1748289065710,-500.0,0.00024873,2]
[362436746,1748289065719,-500.0,0.00024873,2]
[362436747,1748289065729,-500.16958419,0.00024873,2]
[362436748,1748289065738,-500.0,0.00024873,2]
[362436749,1748289065748,-500.96640703,0.00024873,2]
[362436750,1748289065764,-500.0,0.00024873,2]
[362436751,1748289065869,-500.0,0.00024873,2]
[362436752,1748289065879,-500.0,0.00024873,2]
[362436753,1748289065889,-500.0,0.00024873,2]
[362436754,1748289065899,-500.0,0.00024873,2]
[362436755,1748289065910,-500.0,0.00024873,2]
[362436756,1748289065922,-152.30528382,0.00024873,2]
[362436757,1748289065934,-150.0,0.00024873,2]
[362436758,1748289065945,-500.0,0.00024873,2]
[362436759,1748289065956,-500.0,0.00024873,2]
[362436760,1748289065967,-500.0,0.00024873,2]
[362436761,1748289065979,-500.0,0.00024873,2]
[362436762,1748289065988,-500.0,0.00024873,2]
[362436763,1748289066000,-500.94988306,0.00024873,2]
[362436764,1748289066010,-439.08570251,0.00024873,2]
[362436765,1748289066020,-500.0,0.00024873,2]
[362436766,1748289066031,-151.15905447,0.00024873,2]
[362436767,1748289066041,-171.20944317,0.00024873,2]
[362436768,1748289066052,-500.0,0.00024873,2]
[362436769,1748289066066,-500.0,0.00024873,2]
[362436770,1748289066077,-371.12345645,0.00024873,2]
[362436771,1748289066087,-500.0,0.00024873,2]
[362436772,1748289066097,-500.0,0.00024873,2]
[362436773,1748289066109,-500.0,0.00024873,2]
[362436774,1748289066119,-500.0,0.00024873,2]
[362436775,1748289066131,-500.0,0.00024873,2]
[362436776,1748289066142,-522.84529712,0.00024873,2]
[362436777,1748289066153,-501.06807577,0.00024873,2]
[362436778,1748289066163,-500.63178063,0.00024873,2]
[362436779,1748289066175,-600.0,0.00024873,2]
[362436780,1748289066185,-500.0,0.00024873,2]
[362436781,1748289066196,-501.5174622,0.00024873,2]
[362436782,1748289066206,-300.0,0.00024873,2]
[362436783,1748289066216,-500.0,0.00024873,2]
[362436784,1748289066227,-500.0,0.00024873,2]
[362436785,1748289066237,-500.0,0.00024873,2]
[362436786,1748289066247,-166.39673669,0.00024873,2]
[362436787,1748289066259,-500.0,0.00024873,2]
[362436788,1748289066269,-306.3760041,0.00024877,2]
[362436789,1748289066279,-679.3823225,0.00024877,2]
[362436790,1748289066289,-161.5609346,0.00024877,2]
[362436791,1748289066299,-153.0,0.00024877,2]
[362436792,1748289066308,-200.0,0.00024877,120]
[362436793,1748289066318,-1000.17960741,0.00024888,2]
[362436794,1748289066328,-331604.22505042,0.00024899,15]
[362436795,1748289067549,-273.55089147,0.00024556,2]
[362436796,1748289067559,-229.15402412,0.000246,3]
[362436797,1748289067570,-430.0,0.00024657,3]
[362436798,1748289067579,-430.0,0.00024657,3]
[362436799,1748289067588,-430.0,0.00024657,3]
[362436800,1748289067598,-430.0,0.00024657,3]
[362436801,1748289067608,-1372.61,0.00024657,3]
[362436802,1748289067617,-430.0,0.00024657,3]
[362436803,1748289067627,-1372.61,0.00024657,3]
[362436804,1748289067637,-430.0,0.00024657,3]
[362436805,1748289067646,-430.0,0.00024657,3]
[362436806,1748289067656,-1372.61,0.00024657,3]
[362436807,1748289067666,-428.82626741,0.00024657,3]
[362436808,1748289067683,-207.898,0.0002427,2]
[362436809,1748289067693,-1.17373259,0.00024657,3]
[362436810,1748289067703,-297.38071584,0.00024657,3]
[362436811,1748289068219,-132.61928416,0.00024657,3]
[362436812,1748289068229,-76.09066158,0.00024657,3]
[362436813,1748289068283,-762.58186682,0.00024657,3]
[362436814,1748289068297,-533.9374716,0.00024657,3]
[362436815,1748289068308,-430.0,0.00024657,3]
[362436816,1748289068318,-546.44517377,0.00024657,3]
[362436817,1748289068328,-1372.61,0.00024657,3]
[362436818,1748289068338,-430.0,0.00024657,3]
[362436819,1748289068348,-430.0,0.00024657,3]
[362436820,1748289068358,-1372.61,0.00024657,3]
[362436821,1748289068368,-430.0,0.00024657,3]
[362436822,1748289068379,-430.0,0.00024657,3]
[362436823,1748289068389,-1372.61,0.00024657,3]
[362436824,1748289068398,-227.35652834,0.00024657,3]
[362436825,1748289068417,-202.64347166,0.00024657,3]
[362436826,1748289068427,-1372.76534576,0.00024657,3]
[362436827,1748289068438,-34.01857326,0.00024657,3]
[362436828,1748289068450,-395.98142674,0.00024657,3]
[362436829,1748289068460,-430.0,0.00024657,3]
[362436830,1748289068470,-175.71,0.00024657,3]
[362436831,1748289068479,-263.06825252,0.00024657,3]
[362436832,1748289068532,-166.93174748,0.00024657,3]
[362436833,1748289068542,-293.70827924,0.00024657,3]
[362436834,1748289068554,-136.29172076,0.00024657,3]
[362436835,1748289068564,-470.0,0.00024657,3]
[362436836,1748289068575,-229.15402412,0.00024657,7]
[362436837,1748289068585,-19322.81130075,0.00024899,15]
[362436840,1748289939139,-184.0,0.00016438,3]
[362436841,1748289939160,-161.33939946,0.0002,2]
[362436842,1748289939180,-580.5428394,0.0002001,2]
[362436843,1748289939203,-180.82749314,0.00020513,2]
[362436844,1748290033100,-176.0,0.00016438,3]
[362436845,1748290033124,-457.01650602,0.00020513,2]
[362436846,1748290147108,-300.0,0.00020472,2]
[362436847,1748290147129,-995.56973996,0.00020473,2]
[362436848,1748290151131,-32619.03177186,0.00020473,2]
[362436849,1748290156222,-5692.19118418,0.00020473,2]
[362436850,1748290156248,-742.98349398,0.00020513,2]
[362436851,1748290156271,-300.0,0.00020513,2]
[362436852,1748290156294,-500.0,0.00020514,2]
[362436853,1748290156319,-500.0,0.00020514,2]
[362436854,1748290156349,-500.0,0.00020514,2]
[362436855,1748290156371,-240.01120061,0.00020514,2]
[362436856,1748290168251,-259.98879939,0.00020514,2]
[362436857,1748290168274,-500.0,0.00020514,2]
[362436858,1748290168298,-221.62155387,0.00020514,2]
[362436859,1748290168320,-385.88166756,0.00020514,2]
[362436860,1748290168342,-349.37482066,0.00020514,2]
[362436861,1748290168365,-349.59139319,0.00020514,2]
[362436862,1748290168387,-344.09273678,0.00020514,2]
[362436863,1748290168410,-459.04708425,0.00020514,2]
[362436864,1748290168431,-500.0,0.00020514,2]
[362436865,1748290168453,-2153.67721731,0.00020515,2]
[362436866,1748290232527,-1766.22779518,0.000189,2]
[362436867,1748290232538,-1200.0,0.00020514,2]
[362436868,1748290232548,-300.0,0.00020514,2]
[362436869,1748290232558,-22746.32278269,0.00020515,2]
[362436870,1748290232568,-180.831933,0.00020529,2]
[362436871,1748290232578,-251.51,0.0002059,2]
[362436872,1748290232587,-2008.0336559,0.00020629,2]
[362436873,1748290232597,-284.093238,0.00020734,2]
[362436874,1748290232606,-230.78053909,0.00021017,2]
[362436875,1748290232616,-500.0,0.00021164,2]
[362436876,1748290232625,-1084.991601,0.00021243,2]
[362436877,1748290232634,-1084.991601,0.00021253,2]
[362436878,1748290232644,-575.7688765,0.00021262,2]
[362436879,1748290232653,-3000.0,0.000219,2]
[362436880,1748290232662,-222.06444618,0.000219,6]
[362436881,1748290232672,-3000.0,0.0002191,2]
[362436882,1748290232682,-3000.0,0.0002192,2]
[362436883,1748290232691,-3000.0,0.0002193,2]
[362436884,1748290232701,-3000.0,0.0002194,2]
[362436885,1748290232710,-3000.0,0.0002195,2]
[362436886,1748290232719,-3000.0,0.0002196,2]
[362436887,1748290232728,-366.055,0.0002196,2]
[362436888,1748290232737,-3000.0,0.0002197,2]
[362436889,1748290232749,-3000.0,0.0002198,2]
[362436890,1748290232758,-3000.0,0.0002199,2]
[362436891,1748290232767,-328.5382114,0.0002199,2]
[362436892,1748290232779,-3000.0,0.00022,2]
[362436893,1748290232789,-251.31493203,0.00022003,2]
[362436894,1748290232801,-500.0,0.00022007,2]
[362436895,1748290232811,-500.0,0.00022007,2]
[362436896,1748290232821,-500.0,0.00022007,2]
[362436897,1748290232830,-500.0,0.00022007,2]
[362436898,1748290232841,-500.0,0.00022007,2]
[362436899,1748290232851,-500.0,0.00022007,2]
[362436900,1748290232863,-500.0,0.00022007,2]
[362436901,1748290232873,-298.95051773,0.00022007,2]
[362436902,1748290232883,-559.07047274,0.00022007,2]
[362436903,1748290232893,-448.99794561,0.00022007,2]
[362436904,1748290232902,-367.73065591,0.00022007,2]
[362436905,1748290232911,-500.0,0.00022007,2]
[362436906,1748290232923,-500.0,0.00022007,2]
[362436907,1748290232932,-500.0,0.00022007,2]
[362436908,1748290232941,-500.0,0.00022007,2]
[362436909,1748290232953,-500.0,0.00022007,2]
[362436910,1748290232964,-500.0,0.00022007,2]
[362436911,1748290232975,-500.0,0.00022007,2]
[362436912,1748290232987,-500.0,0.00022007,2]
[362436913,1748290232998,-3000.0,0.0002201,2]
[362436914,1748290233009,-3000.0,0.0002202,2]
[362436915,1748290233019,-3000.0,0.0002203,2]
[362436916,1748290233028,-3000.0,0.0002204,2]
[362436917,1748290233038,-500.0,0.0002204,2]
[362436918,1748290233048,-3000.0,0.0002205,2]
[362436919,1748290233057,-3000.0,0.0002206,2]
[362436920,1748290233067,-500.0,0.0002207,2]
[362436921,1748290233077,-500.0,0.0002207,2]
[362436922,1748290233088,-3000.0,0.0002207,2]
[362436923,1748290233099,-500.0,0.00022075,2]
[362436924,1748290233109,-500.0,0.00022075,2]
[362436925,1748290233121,-3000.0,0.0002208,2]
[362436926,1748290233133,-3000.0,0.0002209,2]
[362436927,1748290233144,-3000.0,0.000221,2]
[362436928,1748290233156,-500.0,0.000221,2]
[362436929,1748290233172,-627.43542797,0.000221,2]
[362436930,1748290233183,-1000.0,0.000221,2]
[362436931,1748290233195,-3000.0,0.0002211,2]
[362436932,1748290233207,-3000.0,0.0002212,2]
[362436933,1748290233219,-3000.0,0.0002213,2]
[362436934,1748290233232,-3000.0,0.0002214,2]
[362436935,1748290233243,-3000.0,0.0002215,2]
[362436936,1748290233254,-3000.0,0.0002216,2]
[362436937,1748290233265,-501.12886528,0.0002216,2]
[362436938,1748290233275,-500.0,0.0002216,2]
[362436939,1748290233287,-500.0,0.0002216,2]
[362436940,1748290233297,-500.0,0.0002216,2]
[362436941,1748290233307,-3000.0,0.0002217,2]
[362436942,1748290233318,-3000.0,0.0002218,2]
[362436943,1748290233327,-207.4,0.00022184,2]
[362436944,1748290233337,-151.0,0.00022184,2]
[362436945,1748290233347,-151.0,0.00022184,2]
[362436946,1748290233357,-151.0,0.00022184,2]
[362436947,1748290233367,-151.0,0.00022184,2]
[362436948,1748290233377,-151.0,0.00022184,2]
[362436949,1748290233386,-151.0,0.00022184,2]
[362436950,1748290233396,-151.0,0.00022184,2]
[362436951,1748290233407,-151.0,0.00022184,2]
[362436952,1748290233420,-151.0,0.00022184,2]
[362436953,1748290233431,-151.0,0.00022184,2]
[362436954,1748290233441,-151.0,0.00022184,2]
[362436955,1748290233451,-151.0,0.00022184,2]
[362436956,1748290233461,-151.0,0.00022184,2]
[362436957,1748290233471,-151.0,0.00022184,2]
[362436958,1748290233481,-151.0,0.00022184,2]
[362436959,1748290233491,-3000.0,0.0002219,2]
[362436960,1748290233501,-491.32,0.0002219,3]
[362436961,1748290233512,-3000.0,0.000222,2]
[362436962,1748290233522,-3000.0,0.0002221,2]
[362436963,1748290233532,-3000.0,0.0002222,2]
[362436964,1748290233542,-3000.0,0.0002223,2]
[362436965,1748290233554,-3000.0,0.0002224,2]
[362436966,1748290233564,-3000.0,0.0002225,2]
[362436967,1748290233574,-3000.0,0.0002226,2]
[362436968,1748290233584,-500.0,0.0002226,2]
[362436969,1748290233594,-3000.0,0.0002227,2]
[362436970,1748290233604,-3000.0,0.0002228,2]
[362436971,1748290233614,-3000.0,0.0002229,2]
[362436972,1748290233624,-420.0,0.00022325,2]
[362436973,1748290233634,-420.0,0.00022326,2]
[362436974,1748290233644,-222.06444616,0.00022329,7]
[362436975,1748290233654,-500.0,0.00022356,2]
[362436976,1748290233665,-500.0,0.00022356,2]
[362436977,1748290233676,-500.0,0.00022356,2]
[362436978,1748290233686,-500.0,0.00022375,2]
[362436979,1748290233696,-500.0,0.00022387,2]
[362436980,1748290233706,-460.06324498,0.00022387,2]
[362436981,1748290233716,-428.0,0.00022433,2]
[362436982,1748290233726,-500.0,0.00022456,2]
[362436983,1748290233736,-415.48962466,0.00022456,2]
[362436984,1748290233746,-500.0,0.00022456,2]
[362436985,1748290233757,-503.02,0.00022462,2]
[362436986,1748290233767,-500.0,0.000225,2]
[362436987,1748290233776,-500.0,0.000225,2]
[362436988,1748290233786,-500.0,0.000225,2]
[362436989,1748290233795,-1000.0,0.00022618,2]
[362436990,1748290233805,-1000.0,0.00022623,2]
[362436991,1748290233815,-328.53821138,0.00022632,2]
[362436992,1748290233825,-1000.0,0.00022648,2]
[362436993,1748290233835,-2000.0,0.00022648,2]
[362436994,1748290233846,-1000.0,0.00022708,2]
[362436995,1748290233869,-1000.0,0.00022708,2]
[362436996,1748290233882,-1073.76801246,0.00022708,2]
[362436997,1748290233892,-160.0,0.0002275,3]
[362436998,1748290233902,-222.06444616,0.00022757,7]
[362436999,1748290233915,-1000.0,0.00022904,2]
[362437000,1748290233926,-1000.0,0.00022904,2]
[362437001,1748290233937,-1000.0,0.00022904,2]
[362437002,1748290233947,-1000.0,0.00022923,2]
[362437003,1748290233957,-423.08503179,0.00022925,2]
[362437004,1748290233967,-500.0,0.00022935,2]
[362437005,1748290233977,-539.09427458,0.00023004,2]
[362437006,1748290233987,-1000.0,0.00023048,2]
[362437007,1748290233997,-1003.57840558,0.00023048,2]
[362437008,1748290234008,-229.15402412,0.00023129,2]
[362437009,1748290234018,-894.64583333,0.00023129,2]
[362437010,1748290234028,-1500.0,0.00023166,2]
[362437011,1748290234038,-1500.0,0.00023171,2]
[362437012,1748290234048,-222.06444616,0.00023186,8]
[362437013,1748290234058,-3000.0,0.00023196,2]
[362437014,1748290234068,-1500.0,0.00023256,2]
[362437015,1748290234079,-328.53821138,0.00023274,2]
[362437016,1748290234090,-4431.5,0.00023287,2]
[362437017,1748290234100,-500.0,0.00023356,2]
[362437018,1748290234110,-1500.0,0.00023451,2]
[362437019,1748290234120,-1500.0,0.00023451,2]
[362437020,1748290234130,-1500.0,0.00023451,2]
[362437021,1748290234140,-500.0,0.00023471,2]
[362437022,1748290234150,-215.0738,0.00023553,2]
[362437023,1748290234161,-405.16507239,0.00023596,2]
[362437024,1748290234175,-222.06444616,0.00023614,9]
[362437025,1748290234186,-1005.30963114,0.00023714,2]
[362437026,1748290234196,-1952.444708,0.00023744,2]
[362437027,1748290234207,-1043.47124724,0.00023804,2]
[362437028,1748290234217,-1766.22779518,0.000239,2]
[362437029,1748290234228,-328.53821138,0.00023915,2]
[362437030,1748290234239,-177.77189404,0.00023999,2]
[362437031,1748290234249,-2000.0,0.00023999,2]
[362437032,1748290234259,-1304.34362253,0.00023999,2]
[362437033,1748290234270,-500.0,0.00024,2]
[362437034,1748290234280,-222.06444616,0.00024043,10]
[362437035,1748290234291,-404.0,0.00024115,2]
[362437036,1748290234301,-284.093238,0.00024159,2]
[362437037,1748290234311,-587.0,0.00024297,2]
[362437038,1748290234321,-587.0,0.00024298,2]
[362437039,1748290234331,-754.53,0.00024334,2]
[362437040,1748290234341,-604.48005,0.0002439,3]
[362437041,1748290234351,-500.0,0.00024452,2]
[362437042,1748290234362,-222.06444616,0.00024471,11]
[362437043,1748290234373,-500.0,0.000245,2]
[362437044,1748290234383,-12654.40314616,0.00024529,2]
[362437045,1748290234393,-2500.0,0.00024547,2]
[362437046,1748290234403,-328.53821138,0.00024557,2]
[362437047,1748290234413,-187.11,0.000246,2]
[362437048,1748290234425,-430.0,0.00024657,3]
[362437049,1748290234435,-450.0,0.00024657,3]
[362437050,1748290234445,-450.0,0.00024657,3]
[362437051,1748290234454,-450.0,0.00024657,3]
[362437052,1748290234464,-303.41280074,0.00024657,3]
[362437053,1748290234474,-450.0,0.00024657,3]
[362437054,1748290234488,-450.0,0.00024657,3]
[362437055,1748290234498,-450.0,0.00024657,3]
[362437056,1748290234509,-450.0,0.00024657,3]
[362437057,1748290234519,-245.96963375,0.00024657,3]
[362437058,1748290234529,-558.14251133,0.00024657,3]
[362437059,1748290234539,-430.0,0.00024657,3]
[362437060,1748290234549,-158.01,0.00024657,3]
[362437061,1748290234560,-430.0,0.00024657,3]
[362437062,1748290234569,-430.0,0.00024657,3]
[362437063,1748290234579,-430.0,0.00024657,3]
[362437064,1748290234589,-430.0,0.00024657,3]
[362437065,1748290234599,-430.0,0.00024657,3]
[362437066,1748290234610,-430.0,0.00024657,3]
[362437067,1748290234620,-201.0028926,0.00024657,3]
[362437068,1748290234630,-400.0,0.00024657,3]
[362437069,1748290234641,-430.0,0.00024657,3]
[362437070,1748290234650,-430.0,0.00024657,3]
[362437071,1748290234661,-430.0,0.00024657,3]
[362437072,1748290234673,-430.0,0.00024657,3]
[362437073,1748290234683,-430.0,0.00024657,3]
[362437074,1748290234694,-450.44794241,0.00024657,3]
[362437075,1748290234704,-152.63395759,0.00024657,3]
[362437076,1748290234714,-633.61,0.00024657,3]
[362437077,1748290234724,-633.61,0.00024657,3]
[362437078,1748290234734,-633.61,0.00024657,3]
[362437079,1748290234744,-633.61,0.00024657,3]
[362437080,1748290234755,-633.61,0.00024657,3]
[362437081,1748290234766,-633.61,0.00024657,3]
[362437082,1748290234775,-633.61,0.00024657,3]
[362437083,1748290234786,-633.61,0.00024657,3]
[362437084,1748290234796,-633.61,0.00024657,3]
[362437085,1748290234806,-633.61,0.00024657,3]
[362437086,1748290234816,-633.61,0.00024657,3]
[362437087,1748290234826,-633.61,0.00024657,3]
[362437088,1748290234836,-633.61,0.00024657,3]
[362437089,1748290234846,-633.61,0.00024657,3]
[362437090,1748290234857,-633.61,0.00024657,3]
[362437091,1748290234872,-633.61,0.00024657,3]
[362437092,1748290234883,-633.61,0.00024657,3]
[362437093,1748290234894,-633.61,0.00024657,3]
[362437094,1748290234903,-633.61,0.00024657,3]
[362437095,1748290234913,-633.61,0.00024657,3]
[362437096,1748290234922,-633.61,0.00024657,3]
[362437097,1748290234932,-633.61,0.00024657,3]
[362437098,1748290234942,-633.61,0.00024657,3]
[362437099,1748290234951,-633.82895684,0.00024657,3]
[362437100,1748290234962,-1000.0,0.00024657,3]
[362437101,1748290234971,-176.03719033,0.00024657,3]
[362437102,1748290234981,-430.0,0.00024657,3]
[362437103,1748290234991,-450.0,0.00024657,3]
[362437104,1748290235002,-430.0,0.00024657,3]
[362437105,1748290235012,-430.0,0.00024657,3]
[362437106,1748290235022,-492.09595252,0.00024657,3]
[362437107,1748290235032,-430.0,0.00024657,3]
[362437108,1748290235042,-430.0,0.00024657,3]
[362437109,1748290235052,-450.0,0.00024657,3]
[362437110,1748290235063,-430.0,0.00024657,3]
[362437111,1748290235073,-430.0,0.00024657,3]
[362437112,1748290235083,-430.0,0.00024657,3]
[362437113,1748290235093,-392.19491668,0.00024657,3]
[362437114,1748290235104,-152.09147884,0.00024657,3]
[362437115,1748290235115,-430.0,0.00024657,3]
[362437116,1748290235126,-490.0,0.00024657,3]
[362437117,1748290235136,-430.0,0.00024657,3]
[362437118,1748290235145,-430.0,0.00024657,3]
[362437119,1748290235155,-155.16922581,0.00024657,3]
[362437120,1748290235166,-430.0,0.00024657,3]
[362437121,1748290235176,-182.35875499,0.00024657,3]
[362437122,1748290235187,-430.0,0.00024657,3]
[362437123,1748290235197,-349.03655529,0.00024657,3]
[362437124,1748290235207,-430.0,0.00024657,3]
[362437125,1748290235217,-430.0,0.00024657,3]
[362437126,1748290235227,-430.0,0.00024657,3]
[362437127,1748290235237,-430.0,0.00024657,3]
[362437128,1748290235247,-430.0,0.00024657,3]
[362437129,1748290235258,-430.0,0.00024657,3]
[362437130,1748290235267,-430.0,0.00024657,3]
[362437131,1748290235277,-291.53892968,0.00024657,3]
[362437132,1748290235287,-430.0,0.00024657,3]
[362437133,1748290235450,-430.0,0.00024657,3]
[362437134,1748290235462,-202.71169398,0.00024657,3]
[362437135,1748290235472,-200.0,0.00024657,3]
[362437136,1748290235482,-430.0,0.00024657,3]
[362437137,1748290235493,-289.16,0.00024657,3]
[362437138,1748290235503,-430.0,0.00024657,3]
[362437139,1748290235514,-430.0,0.00024657,3]
[362437140,1748290235525,-430.0,0.00024657,3]
[362437141,1748290235535,-430.0,0.00024657,3]
[362437142,1748290235545,-430.0,0.00024657,3]
[362437143,1748290235555,-430.0,0.00024657,3]
[362437144,1748290235566,-490.0,0.00024657,3]
[362437145,1748290235575,-430.0,0.00024657,3]
[362437146,1748290235586,-430.0,0.00024657,3]
[362437147,1748290235596,-430.0,0.00024657,3]